[Event "NJSK 2023 Meisjes B"]
[Site "Almelo, Netherlands"]
[Date "2023.05.05"]
[Round "6.4"]
[White "Knobbe, Elise"]
[Black "Tangarife Ramirez, Katja"]
[Result "0-1"]
[TimeControl "90min/40moves + 30min + 30sec/move"]
[WhiteElo "1584"]
[BlackElo "1667"]

1. c4 {[%clk 01:30:57]} {[%emt 00:00:02]} c6 {[%clk 01:30:56]} {[%emt
00:00:04]} 2. d4 {[%clk 01:31:21]} {[%emt 00:00:06]} d5 {[%clk 01:31:22]}
{[%emt 00:00:04]} 3. Nf3 {[%clk 01:31:42]} {[%emt 00:00:10]} Nf6 {[%clk
01:31:44]} {[%emt 00:00:07]} 4. Qc2 {[%clk 01:32:01]} {[%emt 00:00:10]} e6
{[%clk 01:30:44]} {[%emt 00:01:31]} 5. g3 {[%clk 01:28:33]} {[%emt 00:03:59]}
Be7 {[%clk 01:29:20]} {[%emt 00:01:54]} 6. Bg2 {[%clk 01:28:02]} {[%emt
00:01:01]} O-O {[%clk 01:29:15]} {[%emt 00:00:35]} 7. O-O {[%clk 01:27:55]}
{[%emt 00:00:36]} Nbd7 {[%clk 01:29:20]} {[%emt 00:00:26]} 8. Bf4 {[%clk
01:22:33]} {[%emt 00:05:51]} b6 {[%clk 01:25:58]} {[%emt 00:03:52]} 9. cxd5
{[%clk 01:08:13]} {[%emt 00:14:49]} cxd5 {[%clk 01:24:28]} {[%emt 00:02:00]} 10.
Nc3 {[%clk 01:07:43]} {[%emt 00:01:00]} Bb7 {[%clk 01:19:17]} {[%emt 00:05:41]}
11. Rac1 {[%clk 01:04:23]} {[%emt 00:03:50]} Rc8 {[%clk 01:16:37]} {[%emt
00:03:11]} 12. Qa4 {[%clk 01:01:17]} {[%emt 00:03:36]} a6 {[%clk 01:15:03]}
{[%emt 00:02:04]} 13. e3 {[%clk 00:53:26]} {[%emt 00:08:21]} Ne8 {[%clk
01:11:11]} {[%emt 00:04:22]} 14. g4 {[%clk 00:45:57]} {[%emt 00:07:59]} Nd6
{[%clk 01:06:09]} {[%emt 00:05:33]} 15. Ne2 {[%clk 00:42:08]} {[%emt 00:04:19]}
Nc4 {[%clk 01:04:25]} {[%emt 00:02:13]} 16. Qb3 {[%clk 00:36:56]} {[%emt
00:05:42]} Nf6 {[%clk 01:01:18]} {[%emt 00:03:37]} 17. h3 {[%clk 00:34:55]}
{[%emt 00:02:31]} Ne4 {[%clk 00:59:43]} {[%emt 00:02:05]} 18. Rfd1 {[%clk
00:33:24]} {[%emt 00:02:01]} Bc6 {[%clk 00:52:13]} {[%emt 00:08:01]} 19. Ne5
{[%clk 00:26:58]} {[%emt 00:06:55]} Ned6 {[%clk 00:34:20]} {[%emt 00:18:23]} 20.
Nxc6 {[%clk 00:22:30]} {[%emt 00:04:58]} Rxc6 {[%clk 00:34:35]} {[%emt
00:00:15]} 21. Nc3 {[%clk 00:21:22]} {[%emt 00:01:38]} b5 {[%clk 00:29:09]}
{[%emt 00:05:56]} 22. Qc2 {[%clk 00:16:05]} {[%emt 00:05:47]} Qd7 {[%clk
00:27:15]} {[%emt 00:02:24]} 23. Qe2 {[%clk 00:14:06]} {[%emt 00:02:29]} Rfc8
{[%clk 00:26:33]} {[%emt 00:01:12]} 24. Rc2 {[%clk 00:12:35]} {[%emt 00:02:01]}
Nxb2 {[%clk 00:24:01]} {[%emt 00:03:02]} 25. Rdc1 {[%clk 00:11:57]} {[%emt
00:01:08]} Nbc4 {[%clk 00:23:14]} {[%emt 00:01:17]} 26. Nb1 {[%clk 00:11:02]}
{[%emt 00:01:25]} Bd8 {[%clk 00:20:47]} {[%emt 00:02:57]} 27. Qd3 {[%clk
00:08:24]} {[%emt 00:03:08]} Ba5 {[%clk 00:18:55]} {[%emt 00:02:22]} 28. Bg3
{[%clk 00:04:14]} {[%emt 00:04:40]} Bc7 {[%clk 00:15:47]} {[%emt 00:03:39]} 29.
Nd2 {[%clk 00:01:42]} {[%emt 00:03:02]} Ne8 {[%clk 00:13:59]} {[%emt 00:02:18]}
30. Nxc4 {[%clk 00:01:16]} {[%emt 00:00:56]} bxc4 {[%clk 00:12:46]} {[%emt
00:01:42]} 31. Qa3 {[%clk 00:01:13]} {[%emt 00:00:34]} Bxg3 {[%clk 00:12:46]}
{[%emt 00:00:29]} 32. fxg3 {[%clk 00:01:39]} {[%emt 00:00:04]} Rb6 {[%clk
00:10:42]} {[%emt 00:02:35]} 33. Rb2 {[%clk 00:01:29]} {[%emt 00:00:39]} Rxb2
{[%clk 00:09:16]} {[%emt 00:01:56]} 34. Qxb2 {[%clk 00:01:57]} {[%emt
00:00:02]} Qc7 {[%clk 00:09:34]} {[%emt 00:00:12]} 35. Kh2 {[%clk 00:01:28]}
{[%emt 00:00:58]} Rb8 {[%clk 00:09:32]} {[%emt 00:00:32]} 36. Qc3 {[%clk
00:01:10]} {[%emt 00:00:48]} Qb6 {[%clk 00:08:00]} {[%emt 00:02:02]} 37. Rc2
{[%clk 00:00:46]} {[%emt 00:00:54]} Nd6 {[%clk 00:07:51]} {[%emt 00:00:39]} 38.
h4 {[%clk 00:00:41]} {[%emt 00:00:36]} h6 {[%clk 00:05:25]} {[%emt 00:02:56]}
39. Kh3 {[%clk 00:00:37]} {[%emt 00:00:35]} Nc8 {[%clk 00:03:51]} {[%emt
00:02:04]} 40. e4 {[%clk 00:00:39]} {[%emt 00:00:27]} Qd6 {[%clk 00:02:34]}
{[%emt 00:01:47]} 41. e5 {[%clk 00:28:01]} {[%emt 00:03:08]} Qb4 {[%clk
00:31:32]} {[%emt 00:01:32]} 42. Qf3 {[%clk 00:27:16]} {[%emt 00:01:15]} Na7
{[%clk 00:31:01]} {[%emt 00:01:01]} 43. Rf2 {[%clk 00:26:12]} {[%emt 00:01:33]}
Rb7 {[%clk 00:30:42]} {[%emt 00:00:49]} 44. g5 {[%clk 00:24:51]} {[%emt
00:01:51]} hxg5 {[%clk 00:30:17]} {[%emt 00:00:55]} 45. hxg5 {[%clk 00:24:44]}
{[%emt 00:00:37]} g6 {[%clk 00:29:44]} {[%emt 00:01:03]} 46. Rc2 {[%clk
00:24:03]} {[%emt 00:01:10]} Nc6 {[%clk 00:29:28]} {[%emt 00:00:47]} 47. Qe3
{[%clk 00:23:00]} {[%emt 00:01:32]} Qb1 {[%clk 00:28:27]} {[%emt 00:01:31]} 48.
Qc3 {[%clk 00:22:20]} {[%emt 00:01:10]} Nxd4 {[%clk 00:25:55]} {[%emt
00:03:03]} 49. Rf2 {[%clk 00:21:50]} {[%emt 00:01:00]} Nf5 {[%clk 00:23:38]}
{[%emt 00:02:48]} 50. g4 {[%clk 00:20:17]} {[%emt 00:02:02]} Ne7 {[%clk
00:22:39]} {[%emt 00:01:30]} 51. Qa5 {[%clk 00:19:22]} {[%emt 00:01:25]} Qb6
{[%clk 00:21:26]} {[%emt 00:01:42]} 0-1

[Event "NJSK 2023 Meisjes B"]
[Site "Almelo, Netherlands"]
[Date "2023.05.05"]
[Round "6.5"]
[White "Kulikova, Polina"]
[Black "Zahirna, Iryna"]
[Result "1/2-1/2"]
[TimeControl "90min/40moves + 30min + 30sec/move"]
[WhiteElo "1589"]
[BlackElo "1594"]

1. d4 {[%clk 01:30:58]} Nf6 {[%clk 01:30:52]} {[%emt 00:00:09]} 2. c4 {[%clk
01:31:19]} {[%emt 00:00:10]} e6 {[%clk 01:31:09]} {[%emt 00:00:12]} 3. Nf3
{[%clk 01:31:21]} {[%emt 00:00:27]} d5 {[%clk 01:30:32]} {[%emt 00:01:07]} 4.
Bg5 {[%clk 01:29:04]} {[%emt 00:02:47]} Be7 {[%clk 01:28:43]} {[%emt 00:02:20]}
5. Nc3 {[%clk 01:28:44]} {[%emt 00:00:50]} O-O {[%clk 01:26:42]} {[%emt
00:02:30]} 6. e3 {[%clk 01:27:24]} {[%emt 00:01:49]} c6 {[%clk 01:21:10]}
{[%emt 00:06:03]} 7. Bd3 {[%clk 01:23:21]} {[%emt 00:04:32]} dxc4 {[%clk
01:17:14]} {[%emt 00:04:26]} 8. Bxc4 {[%clk 01:22:48]} {[%emt 00:01:02]} Nd5
{[%clk 01:16:29]} {[%emt 00:01:15]} 9. Bxe7 {[%clk 01:22:16]} {[%emt 00:01:02]}
Qxe7 {[%clk 01:16:47]} {[%emt 00:00:12]} 10. O-O {[%clk 01:14:14]} {[%emt
00:08:31]} Qb4 {[%clk 01:08:21]} {[%emt 00:08:56]} 11. Qb3 {[%clk 01:12:43]}
{[%emt 00:02:00]} Qxb3 {[%clk 01:06:40]} {[%emt 00:02:13]} 12. Bxb3 {[%clk
01:13:08]} {[%emt 00:00:04]} Nd7 {[%clk 00:57:11]} {[%emt 00:10:00]} 13. Rac1
{[%clk 01:09:40]} {[%emt 00:03:57]} Re8 {[%clk 00:55:17]} {[%emt 00:02:25]} 14.
Rfd1 {[%clk 01:03:59]} {[%emt 00:06:10]} N7f6 {[%clk 00:42:37]} {[%emt
00:13:11]} 15. Na4 {[%clk 00:50:36]} {[%emt 00:13:52]} Nd7 {[%clk 00:27:08]}
{[%emt 00:15:59]} 16. a3 {[%clk 00:41:38]} {[%emt 00:09:27]} N5b6 {[%clk
00:18:58]} {[%emt 00:08:40]} 17. Nc5 Nxc5 {[%clk 00:15:24]} 18. Rxc5 {[%clk
00:34:33]} {[%emt 00:00:59]} Bd7 {[%clk 00:13:24]} {[%emt 00:02:31]} 19. Ne5
{[%clk 00:27:42]} {[%emt 00:07:20]} Rad8 {[%clk 00:12:16]} {[%emt 00:01:39]} 20.
h3 {[%clk 00:25:49]} {[%emt 00:02:23]} Bc8 {[%clk 00:11:02]} {[%emt 00:01:44]}
21. Rcc1 {[%clk 00:22:16]} {[%emt 00:04:03]} Nd7 {[%clk 00:09:51]} {[%emt
00:01:41]} 22. Nd3 {[%clk 00:21:16]} {[%emt 00:01:30]} Kf8 {[%clk 00:09:31]}
{[%emt 00:00:50]} 23. f4 {[%clk 00:13:43]} {[%emt 00:08:03]} f6 {[%clk
00:08:25]} {[%emt 00:01:36]} 24. Nc5 {[%clk 00:10:58]} {[%emt 00:03:15]} Nxc5
{[%clk 00:08:26]} {[%emt 00:00:30]} 25. Rxc5 {[%clk 00:10:35]} {[%emt
00:00:52]} e5 {[%emt 00:01:38]} 26. dxe5 {[%emt 00:00:08]} fxe5 {[%emt
00:00:05]} 1/2-1/2

[Event "NJSK 2023 Meisjes B"]
[Site "Almelo, Netherlands"]
[Date "2023.05.05"]
[Round "6.6"]
[White "Wortman, Manixia"]
[Black "Luijkx, Dagmar"]
[Result "1/2-1/2"]
[TimeControl "90min/40moves + 30min + 30sec/move"]
[WhiteElo "1493"]
[BlackElo "1559"]

1. e4 {[%clk 01:30:59]} e5 {[%clk 01:30:52]} {[%emt 00:00:09]} 2. Nf3 {[%clk
01:31:20]} {[%emt 00:00:08]} Nc6 {[%clk 01:31:18]} {[%emt 00:00:05]} 3. Bc4
{[%clk 01:31:42]} {[%emt 00:00:08]} f5 {[%clk 01:31:25]} {[%emt 00:00:22]} 4.
d3 {[%clk 01:29:36]} {[%emt 00:02:36]} Bc5 {[%clk 01:30:13]} {[%emt 00:01:42]}
5. Nc3 {[%clk 01:28:16]} {[%emt 00:01:50]} f4 {[%clk 01:25:59]} {[%emt
00:04:44]} 6. Bd2 {[%clk 01:24:52]} {[%emt 00:03:54]} d6 {[%clk 01:24:14]}
{[%emt 00:02:16]} 7. h3 {[%clk 01:21:36]} {[%emt 00:03:45]} Bd7 {[%clk
01:20:39]} {[%emt 00:04:05]} 8. Qe2 {[%clk 01:15:27]} {[%emt 00:06:39]} g5
{[%clk 01:16:33]} {[%emt 00:04:36]} 9. Nd4 {[%clk 01:06:26]} {[%emt 00:09:31]}
Qf6 {[%clk 01:10:08]} {[%emt 00:06:55]} 10. Qh5+ {[%clk 01:04:52]} {[%emt
00:02:03]} Qg6 {[%clk 01:09:48]} {[%emt 00:00:50]} 11. Qxg6+ {[%clk 01:04:40]}
{[%emt 00:00:42]} hxg6 {[%clk 01:10:16]} {[%emt 00:00:02]} 12. Ne6 {[%clk
01:04:55]} {[%emt 00:00:15]} Bxe6 {[%clk 01:09:09]} {[%emt 00:01:38]} 13. Bxe6
{[%clk 01:03:51]} {[%emt 00:01:34]} Nd4 {[%clk 01:08:23]} {[%emt 00:01:16]} 14.
Bb3 {[%clk 01:03:18]} {[%emt 00:01:03]} O-O-O {[%clk 01:07:38]} {[%emt
00:01:15]} 15. Na4 {[%clk 00:35:57]} {[%emt 00:27:52]} g4 {[%clk 00:59:35]}
{[%emt 00:08:32]} 16. Nxc5 {[%clk 00:28:07]} {[%emt 00:08:20]} dxc5 {[%clk
00:58:32]} {[%emt 00:01:33]} 17. O-O-O {[%clk 00:25:04]} {[%emt 00:03:32]} gxh3
{[%clk 00:56:32]} {[%emt 00:02:30]} 18. gxh3 {[%clk 00:24:33]} {[%emt
00:01:01]} Ne7 {[%clk 00:55:05]} {[%emt 00:01:58]} 19. Kb1 {[%clk 00:22:19]}
{[%emt 00:02:44]} Rh6 {[%clk 00:52:10]} {[%emt 00:03:24]} 20. Bc3 {[%clk
00:20:20]} {[%emt 00:02:29]} Nec6 {[%clk 00:50:44]} {[%emt 00:01:57]} 21. Rdg1
{[%clk 00:17:13]} {[%emt 00:03:37]} Nxb3 {[%clk 00:49:56]} {[%emt 00:01:18]} 22.
axb3 {[%clk 00:17:07]} {[%emt 00:00:36]} Rdh8 {[%clk 00:49:38]} {[%emt
00:00:48]} 23. Rg5 {[%clk 00:15:07]} {[%emt 00:02:29]} Rxh3 {[%clk 00:48:30]}
{[%emt 00:01:40]} 24. Rxh3 {[%clk 00:15:26]} {[%emt 00:00:11]} Rxh3 {[%clk
00:48:59]} {[%emt 00:00:01]} 25. Rxg6 {[%clk 00:12:52]} {[%emt 00:03:02]} Rh2
{[%clk 00:48:11]} {[%emt 00:01:19]} 26. Rg5 {[%clk 00:11:54]} {[%emt 00:01:29]}
Rxf2 {[%clk 00:47:37]} {[%emt 00:01:03]} 27. Bxe5 {[%clk 00:11:51]} {[%emt
00:00:33]} Nxe5 {[%clk 00:45:09]} {[%emt 00:02:59]} 28. Rxe5 {[%clk 00:12:12]}
{[%emt 00:00:09]} b6 {[%clk 00:44:55]} {[%emt 00:00:44]} 29. Kc1 {[%clk
00:11:51]} {[%emt 00:00:51]} Rf1+ {[%clk 00:44:34]} {[%emt 00:00:50]} 30. Kd2
{[%clk 00:12:08]} {[%emt 00:00:13]} Rf2+ {[%clk 00:44:50]} {[%emt 00:00:14]} 31.
Kd1 {[%clk 00:11:50]} {[%emt 00:00:49]} Kd7 {[%clk 00:44:22]} {[%emt 00:00:58]}
32. Rf5 {[%clk 00:11:11]} {[%emt 00:01:09]} a5 {[%clk 00:42:51]} {[%emt
00:02:01]} 33. Kc1 {[%clk 00:09:39]} {[%emt 00:02:01]} Kd6 {[%clk 00:42:17]}
{[%emt 00:01:04]} 34. Kd1 {[%clk 00:09:07]} {[%emt 00:01:03]} b5 {[%clk
00:42:20]} {[%emt 00:00:27]} 35. Rf6+ {[%clk 00:08:06]} {[%emt 00:01:31]} Ke5
{[%clk 00:42:21]} {[%emt 00:00:30]} 36. Rf7 {[%clk 00:02:46]} {[%emt 00:05:50]}
Kd4 {[%clk 00:41:50]} {[%emt 00:01:01]} 37. Rd7+ {[%clk 00:01:39]} {[%emt
00:01:36]} Ke3 {[%clk 00:41:55]} {[%emt 00:00:24]} 38. c3 {[%clk 00:02:00]}
{[%emt 00:00:10]} Rxb2 {[%clk 00:40:49]} {[%emt 00:01:36]} 39. e5 {[%clk
00:01:53]} {[%emt 00:00:37]} f3 {[%clk 00:41:06]} {[%emt 00:00:13]} 40. e6
{[%clk 00:01:20]} {[%emt 00:01:04]} f2 {[%clk 00:40:52]} {[%emt 00:00:44]} 41.
Rf7 {[%emt 00:09:07]} 1/2-1/2

[Event "NJSK 2023 Meisjes B"]
[Site "Almelo, Netherlands"]
[Date "2023.05.05"]
[Round "6.7"]
[White "Yildirim, Azra"]
[Black "De Bruijne, Marlies"]
[Result "1/2-1/2"]
[TimeControl "90min/40moves + 30min + 30sec/move"]
[WhiteElo "1275"]
[BlackElo "945"]

1. e4 {[%clk 01:30:57]} {[%emt 00:00:02]} c5 {[%clk 01:30:53]} {[%emt
00:00:08]} 2. Nf3 {[%clk 01:31:20]} {[%emt 00:00:07]} e6 {[%clk 01:30:59]}
{[%emt 00:00:24]} 3. d4 {[%clk 01:30:32]} {[%emt 00:01:18]} cxd4 {[%clk
01:30:16]} {[%emt 00:01:12]} 4. Nxd4 {[%clk 01:30:37]} {[%emt 00:00:25]} Nf6
{[%clk 01:29:50]} {[%emt 00:00:57]} 5. Nc3 {[%clk 01:27:32]} {[%emt 00:03:35]}
Bb4 {[%clk 01:28:11]} {[%emt 00:02:08]} 6. Bd3 {[%clk 01:25:37]} {[%emt
00:02:25]} Nc6 {[%clk 01:25:34]} {[%emt 00:03:07]} 7. Nde2 {[%clk 01:22:19]}
{[%emt 00:03:48]} O-O {[%clk 01:25:02]} {[%emt 00:01:02]} 8. Bd2 {[%clk
01:16:51]} {[%emt 00:05:57]} d5 {[%clk 01:22:37]} {[%emt 00:02:56]} 9. Ng3
{[%clk 01:07:35]} {[%emt 00:09:47]} d4 {[%clk 01:19:01]} {[%emt 00:04:06]} 10.
Nce2 {[%clk 01:06:27]} {[%emt 00:01:38]} e5 {[%clk 01:15:02]} {[%emt 00:04:29]}
11. O-O {[%emt 00:02:46]} Bd7 {[%clk 01:09:54]} {[%emt 00:05:29]} 12. c3 {[%clk
00:55:35]} {[%emt 00:09:14]} Bc5 {[%clk 01:06:03]} {[%emt 00:04:21]} 13. cxd4
{[%clk 00:53:10]} {[%emt 00:02:55]} Nxd4 {[%clk 01:04:59]} {[%emt 00:01:34]} 14.
Nxd4 {[%clk 00:47:56]} {[%emt 00:05:44]} Bxd4 {[%clk 01:04:14]} {[%emt
00:01:14]} 15. Rb1 {[%clk 00:45:10]} {[%emt 00:03:16]} Rc8 {[%clk 01:00:22]}
{[%emt 00:04:23]} 16. Be2 {[%clk 00:40:50]} {[%emt 00:04:50]} Bc6 {[%clk
00:55:18]} {[%emt 00:05:34]} 17. Bf3 {[%clk 00:37:37]} {[%emt 00:03:42]} Qb6
{[%clk 00:50:25]} {[%emt 00:05:24]} 18. a4 {[%clk 00:30:51]} {[%emt 00:07:16]}
a5 {[%clk 00:44:50]} {[%emt 00:06:05]} 19. b4 {[%clk 00:24:23]} {[%emt
00:06:58]} axb4 {[%clk 00:41:45]} {[%emt 00:03:35]} 20. Bxb4 {[%clk 00:22:56]}
{[%emt 00:01:58]} Rfd8 {[%clk 00:38:45]} {[%emt 00:03:30]} 21. Qe1 {[%clk
00:21:02]} {[%emt 00:02:24]} Qa7 {[%clk 00:34:00]} {[%emt 00:05:14]} 22. Nf5
{[%clk 00:19:27]} {[%emt 00:02:05]} Bc5 {[%clk 00:28:35]} {[%emt 00:05:55]} 23.
Ne7+ {[%clk 00:18:27]} {[%emt 00:01:30]} Bxe7 {[%clk 00:28:41]} {[%emt
00:00:24]} 24. Bxe7 {[%clk 00:18:54]} {[%emt 00:00:04]} Re8 {[%clk 00:25:43]}
{[%emt 00:03:28]} 25. Bxf6 {[%clk 00:18:47]} {[%emt 00:00:36]} gxf6 {[%clk
00:26:10]} {[%emt 00:00:03]} 26. Qb4 {[%clk 00:17:36]} {[%emt 00:01:41]} Ra8
{[%clk 00:23:51]} {[%emt 00:02:48]} 27. Bd1 {[%clk 00:16:21]} {[%emt 00:01:45]}
Red8 {[%clk 00:22:33]} {[%emt 00:01:49]} 28. Qb6 {[%clk 00:12:34]} {[%emt
00:04:17]} Bxe4 {[%clk 00:19:27]} {[%emt 00:03:36]} 29. Rb2 {[%clk 00:10:30]}
{[%emt 00:02:34]} Qxb6 {[%clk 00:19:18]} {[%emt 00:00:39]} 30. Rxb6 {[%clk
00:10:49]} {[%emt 00:00:10]} Bc6 {[%clk 00:18:51]} {[%emt 00:00:57]} 31. Bb3
{[%clk 00:08:46]} {[%emt 00:02:34]} Rd4 {[%clk 00:15:12]} {[%emt 00:04:09]} 32.
Rc1 {[%clk 00:07:37]} {[%emt 00:01:38]} Bxa4 {[%clk 00:14:01]} {[%emt
00:01:41]} 33. Rxb7 {[%clk 00:07:10]} {[%emt 00:00:58]} Bxb3 {[%clk 00:14:06]}
{[%emt 00:00:25]} 34. Rxb3 {[%clk 00:07:31]} {[%emt 00:00:08]} Rad8 {[%clk
00:13:43]} {[%emt 00:00:54]} 35. Kf1 {[%clk 00:06:46]} {[%emt 00:01:15]} Rd1+
{[%clk 00:13:04]} {[%emt 00:01:09]} 36. Rxd1 {[%clk 00:07:11]} {[%emt
00:00:05]} Rxd1+ {[%clk 00:13:32]} {[%emt 00:00:02]} 37. Ke2 {[%clk 00:07:35]}
{[%emt 00:00:06]} Rd4 {[%clk 00:13:35]} {[%emt 00:00:27]} 38. Rg3+ {[%clk
00:06:43]} {[%emt 00:01:22]} Kf8 {[%clk 00:13:18]} {[%emt 00:00:47]} 39. Ke3
{[%clk 00:06:05]} {[%emt 00:01:08]} Rf4 {[%clk 00:10:41]} {[%emt 00:03:07]} 40.
Rh3 {[%clk 00:04:05]} {[%emt 00:02:31]} Kg7 {[%clk 00:10:05]} {[%emt 00:01:06]}
41. g3 {[%clk 00:04:18]} {[%emt 00:00:17]} Rf5 {[%clk 00:08:30]} {[%emt
00:02:04]} 42. Rh4 {[%clk 00:02:00]} {[%emt 00:02:48]} h5 {[%clk 00:07:53]}
{[%emt 00:01:07]} 43. f3 {[%clk 00:27:30]} {[%emt 00:05:00]} Kg6 {[%clk
00:34:47]} {[%emt 00:03:36]} 44. Ke4 {[%clk 00:27:16]} {[%emt 00:00:44]} Rg5
{[%clk 00:30:49]} {[%emt 00:04:28]} 45. f4 {[%clk 00:25:45]} {[%emt 00:02:01]}
exf4 {[%clk 00:27:18]} {[%emt 00:04:01]} 46. Rxf4 {[%clk 00:22:36]} {[%emt
00:03:39]} Rg4 {[%clk 00:26:27]} {[%emt 00:01:22]} 1/2-1/2

[Event "NJSK 2023 Meisjes B"]
[Site "Almelo, Netherlands"]
[Date "2023.05.06"]
[Round "7.1"]
[White "Gergin, Isafara"]
[Black "Ganeshram, Nirupa"]
[Result "1-0"]
[TimeControl "90min/40moves + 30min + 30sec/move"]
[WhiteElo "1762"]
[BlackElo "1629"]

1. e4 {[%clk 01:30:59]} c5 {[%clk 01:30:56]} {[%emt 00:00:04]} 2. Nf3 {[%clk
01:31:25]} {[%emt 00:00:03]} d6 {[%clk 01:31:22]} {[%emt 00:00:05]} 3. d4
{[%clk 01:31:50]} {[%emt 00:00:05]} cxd4 {[%clk 01:31:48]} {[%emt 00:00:04]} 4.
Nxd4 {[%clk 01:32:13]} {[%emt 00:00:06]} Nf6 {[%clk 01:32:14]} {[%emt
00:00:05]} 5. Nc3 {[%clk 01:32:25]} {[%emt 00:00:18]} Nc6 {[%clk 01:32:38]}
{[%emt 00:00:06]} 6. Be2 {[%clk 01:32:25]} {[%emt 00:00:29]} g6 {[%clk
01:32:50]} {[%emt 00:00:19]} 7. O-O {[%clk 01:32:39]} {[%emt 00:00:16]} Bg7
{[%clk 01:32:56]} {[%emt 00:00:24]} 8. Be3 {[%clk 01:32:51]} {[%emt 00:00:18]}
Bd7 {[%clk 01:32:56]} {[%emt 00:00:31]} 9. Qd2 {[%clk 01:32:41]} {[%emt
00:00:39]} O-O {[%clk 01:33:07]} {[%emt 00:00:19]} 10. Rad1 {[%clk 01:32:00]}
{[%emt 00:01:12]} Rc8 {[%clk 01:31:55]} {[%emt 00:01:43]} 11. h3 {[%clk
01:30:44]} {[%emt 00:01:45]} a6 {[%clk 01:30:51]} {[%emt 00:01:33]} 12. f4
{[%clk 01:24:32]} {[%emt 00:06:42]} Qc7 {[%clk 01:26:22]} {[%emt 00:05:00]} 13.
Bf3 {[%clk 01:18:41]} {[%emt 00:06:21]} b5 {[%clk 01:23:17]} {[%emt 00:03:35]}
14. a3 {[%clk 01:17:01]} {[%emt 00:02:10]} Na5 {[%clk 01:20:53]} {[%emt
00:02:54]} 15. Qd3 {[%clk 01:08:43]} {[%emt 00:08:47]} Nc4 {[%clk 01:19:25]}
{[%emt 00:01:59]} 16. Bc1 {[%clk 01:08:16]} {[%emt 00:00:57]} Nxa3 {[%clk
01:11:35]} {[%emt 00:08:20]} 17. Rfe1 {[%clk 00:49:33]} {[%emt 00:19:13]} Nc4
{[%clk 01:05:54]} {[%emt 00:06:11]} 18. b3 {[%clk 00:43:48]} {[%emt 00:06:16]}
Nb6 {[%clk 00:56:46]} {[%emt 00:09:38]} 19. Bb2 {[%clk 00:42:52]} {[%emt
00:01:26]} e6 {[%clk 00:31:25]} {[%emt 00:25:51]} 20. Ra1 {[%clk 00:37:56]}
{[%emt 00:05:26]} b4 {[%clk 00:27:26]} {[%emt 00:04:29]} 21. Nd1 {[%clk
00:33:54]} {[%emt 00:04:32]} e5 {[%clk 00:22:26]} {[%emt 00:05:30]} 22. Ne2
{[%clk 00:30:52]} {[%emt 00:03:31]} Bb5 {[%clk 00:20:16]} {[%emt 00:02:41]} 23.
Qd2 {[%clk 00:28:20]} {[%emt 00:03:02]} Qc5+ {[%clk 00:19:08]} {[%emt
00:01:38]} 24. Kh1 {[%clk 00:21:03]} {[%emt 00:07:47]} Ra8 {[%clk 00:17:23]}
{[%emt 00:02:15]} 25. f5 {[%clk 00:14:43]} {[%emt 00:06:50]} a5 {[%clk
00:16:19]} {[%emt 00:01:35]} 26. c3 {[%clk 00:11:59]} {[%emt 00:03:14]} Rfd8
{[%clk 00:12:31]} {[%emt 00:04:18]} 27. c4 {[%clk 00:11:56]} {[%emt 00:00:33]}
Bc6 {[%clk 00:12:46]} {[%emt 00:00:15]} 28. Ng3 {[%clk 00:11:35]} {[%emt
00:00:51]} a4 {[%clk 00:12:19]} {[%emt 00:00:57]} 29. bxa4 {[%clk 00:08:02]}
{[%emt 00:04:03]} Rxa4 {[%clk 00:10:26]} {[%emt 00:02:22]} 30. Rc1 {[%clk
00:07:09]} {[%emt 00:01:22]} Ra2 {[%clk 00:09:18]} {[%emt 00:01:38]} 31. Qd3
{[%clk 00:07:01]} {[%emt 00:00:37]} Bh6 {[%clk 00:07:40]} {[%emt 00:02:09]} 32.
Rc2 {[%clk 00:04:35]} {[%emt 00:02:56]} Rda8 {[%clk 00:06:13]} {[%emt
00:01:57]} 33. Ne3 {[%clk 00:03:05]} {[%emt 00:02:00]} Ba4 {[%clk 00:04:47]}
{[%emt 00:01:56]} 34. Rd2 {[%clk 00:03:03]} {[%emt 00:00:32]} Bxe3 {[%clk
00:04:22]} {[%emt 00:00:56]} 35. Rxe3 {[%clk 00:01:42]} {[%emt 00:01:50]} Nxc4
{[%clk 00:04:34]} {[%emt 00:00:18]} 36. Ree2 {[%clk 00:00:56]} {[%emt
00:01:16]} Nxd2 {[%clk 00:04:33]} {[%emt 00:00:31]} 37. Rxd2 {[%clk 00:01:21]}
{[%emt 00:00:05]} Rxb2 {[%clk 00:04:29]} {[%emt 00:00:35]} 38. Rxb2 {[%clk
00:01:18]} {[%emt 00:00:33]} Qc1+ {[%clk 00:04:54]} {[%emt 00:00:04]} 39. Kh2
{[%clk 00:01:38]} {[%emt 00:00:10]} Qxb2 {[%clk 00:05:13]} {[%emt 00:00:12]} 40.
Qxd6 {[%clk 00:01:52]} {[%emt 00:00:16]} Kg7 {[%clk 00:05:14]} {[%emt
00:00:30]} 41. h4 {[%clk 00:01:35]} {[%emt 00:00:46]} Qd4 {[%clk 00:04:34]}
{[%emt 00:01:10]} 42. Qc7 {[%clk 00:01:23]} {[%emt 00:00:42]} b3 {[%clk
00:03:00]} {[%emt 00:02:04]} 43. h5 {[%clk 00:29:22]} {[%emt 00:02:30]} Bd7
{[%clk 00:25:33]} {[%emt 00:07:57]} 44. Qc1 {[%clk 00:27:39]} {[%emt 00:02:13]}
b2 {[%clk 00:25:34]} {[%emt 00:00:30]} 45. h6+ {[%clk 00:25:46]} {[%emt
00:02:23]} Kf8 {[%clk 00:25:54]} {[%emt 00:00:10]} 46. Qg5 {[%clk 00:24:03]}
{[%emt 00:02:13]} Qb6 {[%clk 00:24:52]} {[%emt 00:01:32]} 47. fxg6 {[%clk
00:23:53]} {[%emt 00:00:40]} b1=Q {[%clk 00:24:54]} {[%emt 00:00:28]} 48. g7+
{[%clk 00:24:00]} {[%emt 00:00:23]} Kg8 {[%clk 00:25:18]} {[%emt 00:00:06]} 49.
Ne2 {[%clk 00:23:06]} {[%emt 00:01:23]} Bb5 {[%clk 00:24:34]} {[%emt 00:01:15]}
50. Ng3 {[%clk 00:22:26]} {[%emt 00:01:10]} Q1g1+ {[%clk 00:24:31]} {[%emt
00:00:33]} 51. Kh3 {[%clk 00:22:50]} {[%emt 00:00:05]} Bd7+ {[%clk 00:24:44]}
{[%emt 00:00:17]} 52. Nf5 {[%clk 00:23:10]} {[%emt 00:00:10]} Qh1+ {[%clk
00:25:04]} {[%emt 00:00:10]} 53. Kg3 {[%clk 00:23:25]} {[%emt 00:00:15]} Qf2+
{[%clk 00:25:22]} {[%emt 00:00:05]} 54. Kxf2 {[%clk 00:23:35]} {[%emt
00:00:27]} Ra2+ {[%clk 00:24:38]} {[%emt 00:01:15]} 55. Kg3 {[%clk 00:21:45]}
{[%emt 00:02:19]} Qe1+ {[%clk 00:21:22]} {[%emt 00:03:46]} 56. Kh2 {[%clk
00:20:56]} {[%emt 00:01:19]} Bxf5 {[%clk 00:20:31]} {[%emt 00:01:21]} 57. Qxf6
{[%clk 00:20:41]} {[%emt 00:00:44]} Ra8 {[%clk 00:19:59]} {[%emt 00:01:02]} 58.
exf5 {[%clk 00:19:38]} {[%emt 00:01:33]} e4 {[%clk 00:19:35]} {[%emt 00:00:55]}
59. Bh5 {[%clk 00:19:19]} {[%emt 00:00:47]} 1-0